[Event "EYCC Open-U18 2019"]
[Site "Bratislava"]
[Date "2019.08.07"]
[Round "6.15"]
[White "Blohberger, Felix"]
[Black "Mladek, Richard"]
[Result "1-0"]
[ECO "A05"]
[WhiteElo "2476"]
[BlackElo "2253"]
[Annotator "ChessBase"]
[PlyCount "132"]
[EventDate "2019.08.02"]
[EventType "swiss"]
[EventCountry "SVK"]
[SourceTitle "playchess.com"]
[Source "ChessBase"]
[SourceQuality "1"]
[TimeControl "40/5400+30:1800+30"]

1. Nf3 {[%emt 0:00:00]} Nf6 {[%emt 0:00:00]} 2. g3 {[%emt 0:00:00]} g6 {[%emt 0:00:03]} 3. b3 {[%emt 0:00:06]} Bg7 {[%emt 0:00:51]} 4. Bb2 {[%emt 0:00:06]} O-O {[%emt 0:00:25]} 5. Bg2 {[%emt 0:00:09]} d5 {[%emt 0:00:29]} 6. c4 {[%emt 0:00:16]} c6 {[%emt 0:00:51]} 7. O-O {[%emt 0:00:17]} Bg4 {[%emt 0:00:27]} 8. h3 {[%emt 0:00:48]} Bxf3 {[%emt 0:00:26]} 9. Bxf3 {[%emt 0:00:10]} Nbd7 {[%emt 0:02:21]} 10. d3 {[%emt 0:12:50]} e5 {[%emt 0:02:55]} 11. cxd5 {[%emt 0:01:20]} cxd5 {[%emt 0:01:19]} 12. Nc3 {[%emt 0:05:32]} Nb6 {[%emt 0:07:59]} 13. Na4 {[%emt 0:04:58]} Re8 {[%emt 0:06:30]} 14. Bg2 {[%emt 0:04:05]} Bf8 {[%emt 0:01:12]} 15. Qd2 {[%emt 0:06:16]} Nbd7 {[%emt 0:02:44]} 16. Rfc1 {[%emt 0:02:48]} a6 {[%emt 0:06:34]} 17. Nc3 {[%emt 0:04:45]} Nb6 {[%emt 0:05:39]} 18. e3 {[%emt 0:11:28]} Qd7 {[%emt 0:02:10]} 19. Ne2 {[%emt 0:02:41]} Rad8 {[%emt 0:08:20]} 20. Qa5 {[%emt 0:01:04]} Qd6 {[%emt 0:05:09]} 21. Rc2 {[%emt 0:01:24]} Rc8 {[%emt 0:09:08]} 22. Rac1 {[%emt 0:00:16]} Rxc2 {[%emt 0:00:21]} 23. Rxc2 {[%emt 0:00:06]} Nfd7 {[%emt 0:01:54]} 24. Rc1 {[%emt 0:04:26]} f6 {[%emt 0:01:49]} 25. Nc3 {[%emt 0:06:44]} Nc5 {[%emt 0:02:24]} 26. Ba3 {[%emt 0:08:27]} Rc8 {[%emt 0:00:06]} 27. Nxd5 {[%emt 0:09:46]} Nxd5 {[%emt 0:02:58]} 28. Rxc5 {[%emt 0:00:20]} Rxc5 {[%emt 0:01:28]} 29. Bxc5 {[%emt 0:00:13]} Qxc5 {[%emt 0:00:23]} 30. Bxd5+ {[%emt 0:00:07]} Kg7 {[%emt 0:00:36]} 31. Qd8 {[%emt 0:06:31]} Qd6 {[%emt 0:00:28]} 32. Qxd6 {[%emt 0:00:24]} Bxd6 {[%emt 0:00:01]} 33. Bxb7 {[%emt 0:00:06]} a5 {[%emt 0:00:05]} 34. Kg2 {[%emt 0:01:42]} f5 {[%emt 0:06:26]} 35. d4 {[%emt 0:05:01]} Kf6 {[%emt 0:01:25]} 36. Kf3 {[%emt 0:00:07]} Bb4 {[%emt 0:00:47]} 37. dxe5+ {[%emt 0:01:15]} Kxe5 {[%emt 0:00:02]} 38. Ke2 {[%emt 0:00:08]} h6 {[%emt 0:05:58]} 39. Bc6 {[%emt 0:01:15]} g5 {[%emt 0:02:28]} 40. f4+ {[%emt 0:00:00]} Kf6 {[%emt 0:00:00]} 41. g4 {[%emt 0:15:21]} h5 {[%emt 0:23:38]} 42. gxf5 {[%emt 0:09:02]} Kxf5 {[%emt 0:01:45]} 43. Kf3 {[%emt 0:02:14]} gxf4 {[%emt 0:02:41]} 44. exf4 {[%emt 0:00:10]} Kf6 {[%emt 0:03:34]} 45. Ke4 {[%emt 0:00:15]} Bc3 {[%emt 0:05:22]} 46. Be8 {[%emt 0:00:45]} h4 {[%emt 0:00:07]} 47. Bh5 {[%emt 0:00:19]} Bd2 {[%emt 0:02:27]} 48. f5 {[%emt 0:00:23]} Bb4 {[%emt 0:01:42]} 49. Bg4 {[%emt 0:00:06]} Ba3 {[%emt 0:02:08]} 50. Kd4 {[%emt 0:00:11]} Bb2+ {[%emt 0:00:58]} 51. Kd5 {[%emt 0:00:25]} Ke7 {[%emt 0:00:23]} 52. Kc5 {[%emt 0:00:25]} Bc3 {[%emt 0:01:21]} 53. a3 {[%emt 0:01:55]} a4 {[%emt 0:01:53]} 54. b4 {[%emt 0:00:13]} Bb2 {[%emt 0:00:11]} 55. Kb5 {[%emt 0:00:08]} Bxa3 {[%emt 0:00:08]} 56. Kxa4 {[%emt 0:00:03]} Bb2 {[%emt 0:00:12]} 57. Kb5 {[%emt 0:01:57]} Kd6 {[%emt 0:00:10]} 58. Ka6 {[%emt 0:00:24]} Kc7 {[%emt 0:01:03]} 59. b5 {[%emt 0:00:06]} Bd4 {[%emt 0:00:05]} 60. Bf3 {[%emt 0:00:04]} Kb8 {[%emt 0:00:30]} 61. b6 {[%emt 0:00:54]} Be5 {[%emt 0:00:43]} 62. b7 {[%emt 0:01:43]} Bd4 {[%emt 0:00:24]} 63. Be4 {[%emt 0:00:05]} Kc7 {[%emt 0:01:35]} 64. f6 {[%emt 0:00:36]} Bxf6 {[%emt 0:00:28]} 65. Ka7 {[%emt 0:00:05]} Bd4+ {[%emt 0:00:05]} 66. Ka8 {[%emt 0:00:04]} Ba7 1-0

[Event "EYCC Open-U18 2019"]
[Site "Bratislava"]
[Date "2019.08.07"]
[Round "6.16"]
[White "Fus, Jakub"]
[Black "Heimisson, Hilmir Freyr"]
[Result "1/2-1/2"]
[ECO "D38"]
[WhiteElo "2341"]
[BlackElo "2279"]
[Annotator "NA"]
[PlyCount "147"]
[EventDate "2019.08.02"]
[EventType "swiss"]
[EventCountry "SVK"]
[SourceTitle "playchess.com"]
[Source "ChessBase"]
[SourceQuality "1"]
[TimeControl "40/5400+30:1800+30"]

1. d4 {[%emt 0:00:00]} Nf6 {[%emt 0:00:00]} 2. c4 {[%emt 0:00:12]} e6 {[%emt 0:00:00]} 3. Nf3 {[%emt 0:00:36]} d5 {[%emt 0:00:00]} 4. Nc3 {[%emt 0:00:33]} Bb4 {[%emt 0:00:00]} 5. Qa4+ {[%emt 0:01:24]} Nc6 {[%emt 0:00:00]} 6. cxd5 {[%emt 0:01:23]} exd5 {[%emt 0:00:03]} 7. Bg5 {[%emt 0:00:09]} h6 {[%emt 0:00:37]} 8. Bxf6 {[%emt 0:00:26]} Qxf6 {[%emt 0:00:06]} 9. e3 {[%emt 0:00:19]} O-O {[%emt 0:00:31]} 10. Rc1 {[%emt 0:00:17]} a6 {[%emt 0:10:16]} 11. a3 {[%emt 0:01:55]} Bxc3+ {[%emt 0:00:08]} 12. Rxc3 {[%emt 0:00:14]} Qg6 {[%emt 0:10:12]} 13. Qd1 {[%emt 0:00:30]} Re8 {[%emt 0:00:14]} 14. h3 {[%emt 0:00:16]} Ne7 {[%emt 0:07:53]} 15. Bd3 {[%emt 0:04:30]} Qd6 {[%emt 0:00:41]} 16. Qc2 {[%emt 0:01:55]} c6 {[%emt 0:00:04]} 17. O-O {[%emt 0:00:18]} g6 {[%emt 0:05:37]} 18. Qb3 {[%emt 0:08:50]} Rb8 {[%emt 0:02:51]} 19. Rfc1 {[%emt 0:04:18]} Bf5 {[%emt 0:02:02]} 20. Be2 {[%emt 0:00:38]} Kg7 {[%emt 0:05:11]} 21. Qa4 {[%emt 0:06:11]} Ng8 {[%emt 0:04:20]} 22. b4 {[%emt 0:05:49]} Nf6 {[%emt 0:01:02]} 23. Qd1 {[%emt 0:00:29]} Ne4 {[%emt 0:06:26]} 24. Rb3 {[%emt 0:00:50]} Qe7 {[%emt 0:03:55]} 25. a4 {[%emt 0:01:45]} Rec8 {[%emt 0:02:37]} 26. Bf1 {[%emt 0:04:59]} Be6 {[%emt 0:01:48]} 27. Ne5 {[%emt 0:03:11]} Ra8 {[%emt 0:02:31]} 28. Nd3 {[%emt 0:06:49]} Nd6 {[%emt 0:06:05]} 29. Nc5 {[%emt 0:07:22]} Bd7 {[%emt 0:00:09]} 30. Rb2 {[%emt 0:04:55]} Be8 {[%emt 0:01:13]} 31. Bd3 {[%emt 0:02:30]} a5 {[%emt 0:02:16]} 32. bxa5 {[%emt 0:02:17]} Rxa5 {[%emt 0:00:14]} 33. Rb4 {[%emt 0:07:10]} b5 {[%emt 0:08:18]} 34. Qf3 {[%emt 0:11:19]} bxa4 {[%emt 0:01:16]} 35. Rxa4 {[%emt 0:00:31]} Rxa4 {[%emt 0:03:15]} 36. Nxa4 {[%emt 0:00:05]} Bd7 {[%emt 0:00:07]} 37. Qf4 {[%emt 0:06:15]} Ra8 {[%emt 0:09:50]} 38. Nc5 {[%emt 0:00:48]} Bc8 {[%emt 0:01:11]} 39. Rb1 {[%emt 0:01:36]} Nb7 {[%emt 0:01:13]} 40. Nxb7 {[%emt 0:00:00]} Bxb7 {[%emt 0:00:00]} 41. Rb6 {[%emt 0:08:46]} Ra1+ {[%emt 0:11:39]} 42. Kh2 {[%emt 0:00:08]} Ra3 {[%emt 0:01:28]} 43. Bb1 {[%emt 0:04:29]} Ra6 {[%emt 0:02:31]} 44. Rb3 {[%emt 0:00:29]} Bc8 {[%emt 0:07:28]} 45. Rb8 {[%emt 0:02:02]} Bb7 {[%emt 0:00:33]} 46. Bd3 {[%emt 0:02:19]} Ra3 {[%emt 0:00:49]} 47. Be2 {[%emt 0:01:05]} Ra2 {[%emt 0:00:22]} 48. Bg4 {[%emt 0:00:32]} Ra8 {[%emt 0:04:58]} 49. Rxa8 {[%emt 0:02:56]} Bxa8 {[%emt 0:00:04]} 50. Qb8 {[%emt 0:00:36]} Bb7 {[%emt 0:00:30]} 51. Bd1 {[%emt 0:01:23]} Ba6 {[%emt 0:03:03]} 52. Ba4 {[%emt 0:04:29]} Qd7 {[%emt 0:01:08]} 53. Qe5+ {[%emt 0:00:32]} Kh7 {[%emt 0:00:36]} 54. Qf6 {[%emt 0:01:03]} Bb5 {[%emt 0:00:45]} 55. Bc2 {[%emt 0:00:06]} h5 {[%emt 0:00:45]} 56. f4 {[%emt 0:01:10]} Qe8 {[%emt 0:01:39]} 57. f5 {[%emt 0:01:18]} Ba6 {[%emt 0:01:37]} 58. g3 {[%emt 0:03:58]} Bc8 {[%emt 0:00:30]} 59. h4 {[%emt 0:00:44]} Bxf5 {[%emt 0:01:50]} 60. Bxf5 {[%emt 0:00:06]} gxf5 {[%emt 0:00:04]} 61. Qxf5+ {[%emt 0:03:05]} Kg7 {[%emt 0:00:48]} 62. Qg5+ {[%emt 0:00:13]} Kf8 {[%emt 0:00:07]} 63. Qh6+ {[%emt 0:02:10]} Kg8 {[%emt 0:00:08]} 64. Qg5+ {[%emt 0:01:26]} Kf8 {[%emt 0:00:04]} 65. Qh6+ {[%emt 0:00:48]} Kg8 {[%emt 0:00:06]} 66. Kg1 {[%emt 0:02:17]} Qb8 {[%emt 0:01:30]} 67. Qg5+ {[%emt 0:00:26]} Kf8 {[%emt 0:00:14]} 68. Kg2 {[%emt 0:00:48]} Qb2+ {[%emt 0:00:18]} 69. Kf3 {[%emt 0:00:31]} Qc2 {[%emt 0:00:34]} 70. Qh6+ {[%emt 0:00:15]} Kg8 {[%emt 0:00:09]} 71. Qg5+ {[%emt 0:00:39]} Kf8 {[%emt 0:00:06]} 72. Qd8+ {[%emt 0:00:22]} Kg7 {[%emt 0:00:04]} 73. Qg5+ {[%emt 0:00:46]} Kf8 {[%emt 0:00:04]} 74. Qd8+ {[%emt 0:00:21]} 1/2-1/2

[Event "EYCC Open-U18 2019"]
[Site "Bratislava"]
[Date "2019.08.07"]
[Round "6.17"]
[White "Kozak, Antoni"]
[Black "Zeman, Matyas"]
[Result "0-1"]
[ECO "D35"]
[WhiteElo "2365"]
[BlackElo "2275"]
[Annotator "NA"]
[PlyCount "50"]
[EventDate "2019.08.02"]
[EventType "swiss"]
[EventCountry "SVK"]
[SourceTitle "playchess.com"]
[Source "ChessBase"]
[SourceQuality "1"]
[TimeControl "40/5400+30:1800+30"]

1. d4 {[%emt 0:09:54]} e6 {[%emt 0:04:30]} 2. c4 {[%emt 0:00:37]} Nf6 {[%emt 0:00:11]} 3. Nc3 {[%emt 0:00:24]} d5 {[%emt 0:00:10]} 4. cxd5 {[%emt 0:00:04]} Nxd5 {[%emt 0:00:07]} 5. e4 {[%emt 0:00:03]} Nxc3 {[%emt 0:00:05]} 6. bxc3 {[%emt 0:00:04]} c5 {[%emt 0:00:06]} 7. Rb1 {[%emt 0:00:02]} Be7 {[%emt 0:00:35]} 8. Nf3 {[%emt 0:00:08]} O-O {[%emt 0:00:35]} 9. h4 {[%emt 0:00:02]} Nc6 {[%emt 0:04:22]} 10. Bb5 {[%emt 0:01:16]} Bd7 {[%emt 0:18:04]} 11. O-O {[%emt 0:00:29]} a6 {[%emt 0:12:04]} 12. Be2 {[%emt 0:00:06]} b5 {[%emt 0:02:21]} 13. h5 {[%emt 0:05:32]} h6 {[%emt 0:03:32]} 14. Qd3 {[%emt 0:17:53]} cxd4 {[%emt 0:05:07]} 15. e5 {[%emt 0:01:27]} f5 {[%emt 0:05:05]} 16. exf6 {[%emt 0:02:03]} Bxf6 {[%emt 0:00:30]} 17. Qe4 {[%emt 0:00:15]} Ne7 {[%emt 0:22:12]} 18. Bd3 {[%emt 0:04:25]} Nf5 {[%emt 0:02:28]} 19. g4 {[%emt 0:03:53]} dxc3 {[%emt 0:01:12]} 20. gxf5 {[%emt 0:07:27]} exf5 {[%emt 0:00:28]} 21. Qd5+ {[%emt 0:00:12]} Kh8 {[%emt 0:00:06]} 22. Ba3 {[%emt 0:03:38]} Re8 {[%emt 0:01:04]} 23. Bxf5 {[%emt 0:00:39]} Bxf5 {[%emt 0:00:25]} 24. Qxf5 {[%emt 0:00:01]} Qa5 {[%emt 0:00:41]} 25. Rbe1 {[%emt 0:08:15]} Qxa3 {[%emt 0:00:44]} 0-1

[Event "EYCC Open-U18 2019"]
[Site "Bratislava"]
[Date "2019.08.07"]
[Round "6.18"]
[White "Guerra Rivera, Salvador"]
[Black "Chatzieleftheriou, Andreas"]
[Result "0-1"]
[ECO "C17"]
[WhiteElo "2355"]
[BlackElo "2208"]
[Annotator "NA"]
[PlyCount "86"]
[EventDate "2019.08.02"]
[EventType "swiss"]
[EventCountry "SVK"]
[SourceTitle "playchess.com"]
[Source "ChessBase"]
[SourceQuality "1"]
[TimeControl "40/5400+30:1800+30"]

1. e4 {[%emt 0:00:00]} e6 {[%emt 0:00:00]} 2. d4 {[%emt 0:00:00]} d5 {[%emt 0:00:00]} 3. Nc3 {[%emt 0:00:00]} Bb4 {[%emt 0:00:12]} 4. e5 {[%emt 0:00:16]} c5 {[%emt 0:00:22]} 5. Qg4 {[%emt 0:03:12]} g6 {[%emt 0:23:52]} 6. Bd2 {[%emt 0:07:02]} cxd4 {[%emt 0:04:39]} 7. Qxd4 {[%emt 0:07:22]} Nc6 {[%emt 0:00:15]} 8. Qf4 {[%emt 0:01:22]} Bf8 {[%emt 0:12:10]} 9. O-O-O {[%emt 0:05:19]} Bg7 {[%emt 0:01:20]} 10. Nf3 {[%emt 0:00:37]} a6 {[%emt 0:02:09]} 11. Bd3 {[%emt 0:06:11]} Qc7 {[%emt 0:02:58]} 12. Rde1 {[%emt 0:01:38]} h6 {[%emt 0:02:49]} 13. h4 {[%emt 0:03:38]} Nge7 {[%emt 0:00:54]} 14. Kb1 {[%emt 0:01:51]} Bd7 {[%emt 0:02:28]} 15. g4 {[%emt 0:17:23]} Rf8 {[%emt 0:04:04]} 16. Qg3 {[%emt 0:05:32]} Rb8 {[%emt 0:11:56]} 17. Ne2 {[%emt 0:02:33]} Rc8 {[%emt 0:03:12]} 18. Ned4 {[%emt 0:00:56]} Qb6 {[%emt 0:05:10]} 19. Be3 {[%emt 0:02:20]} Qc7 {[%emt 0:00:40]} 20. Nxc6 {[%emt 0:04:10]} Nxc6 {[%emt 0:00:18]} 21. Bc5 {[%emt 0:00:41]} Rh8 {[%emt 0:00:44]} 22. Bd6 {[%emt 0:01:16]} Qb6 {[%emt 0:00:52]} 23. c3 {[%emt 0:02:37]} Na5 {[%emt 0:00:44]} 24. Ka1 {[%emt 0:01:01]} Nc4 {[%emt 0:00:23]} 25. Bxc4 {[%emt 0:00:06]} Rxc4 {[%emt 0:01:03]} 26. Nd4 {[%emt 0:00:19]} Bf8 {[%emt 0:02:48]} 27. Qf4 {[%emt 0:01:58]} Qd8 {[%emt 0:01:53]} 28. Qe3 {[%emt 0:02:27]} Bxd6 {[%emt 0:01:45]} 29. exd6 {[%emt 0:00:05]} Qf6 {[%emt 0:00:39]} 30. f4 {[%emt 0:02:02]} Kd8 {[%emt 0:01:56]} 31. Rh3 {[%emt 0:03:48]} h5 {[%emt 0:01:13]} 32. g5 {[%emt 0:00:57]} Qg7 {[%emt 0:00:09]} 33. b3 {[%emt 0:01:37]} Rc8 {[%emt 0:00:17]} 34. Kb2 {[%emt 0:00:14]} b5 {[%emt 0:01:26]} 35. f5 {[%emt 0:02:11]} b4 {[%emt 0:02:11]} 36. fxe6 {[%emt 0:01:54]} Rxc3 {[%emt 0:00:31]} 37. Qf2 {[%emt 0:08:11]} Rxh3 {[%emt 0:00:45]} 38. Kb1 {[%emt 0:00:03]} fxe6 {[%emt 0:03:20]} 39. Rxe6 {[%emt 0:01:08]} Rh1+ {[%emt 0:01:33]} 40. Kc2 {[%emt 0:00:00]} Rh2 {[%emt 0:00:00]} 41. Qxh2 {[%emt 0:00:11]} Qxd4 {[%emt 0:00:32]} 42. Qe2 {[%emt 0:14:19]} Bxe6 {[%emt 0:00:24]} 43. Qxe6 {[%emt 0:00:10]} Qe4+ {[%emt 0:00:07]} 0-1

[Event "EYCC Open-U18 2019"]
[Site "Bratislava"]
[Date "2019.08.07"]
[Round "6.19"]
[White "Hurdzan, Tomas"]
[Black "Papp, Levente"]
[Result "1/2-1/2"]
[ECO "C06"]
[WhiteElo "2231"]
[BlackElo "2362"]
[Annotator "NA"]
[PlyCount "69"]
[EventDate "2019.08.02"]
[EventType "swiss"]
[EventCountry "SVK"]
[SourceTitle "playchess.com"]
[Source "ChessBase"]
[SourceQuality "1"]
[TimeControl "40/5400+30:1800+30"]

1. e4 {[%emt 0:00:00]} e6 {[%emt 0:00:00]} 2. d4 {[%emt 0:00:00]} d5 {[%emt 0:00:00]} 3. Nd2 {[%emt 0:00:00]} Nf6 {[%emt 0:00:00]} 4. e5 {[%emt 0:00:00]} Nfd7 {[%emt 0:00:00]} 5. Bd3 {[%emt 0:00:00]} c5 {[%emt 0:00:00]} 6. c3 {[%emt 0:00:03]} Nc6 {[%emt 0:00:00]} 7. Ne2 {[%emt 0:00:15]} cxd4 {[%emt 0:00:01]} 8. cxd4 {[%emt 0:00:05]} f6 {[%emt 0:00:05]} 9. exf6 {[%emt 0:00:04]} Nxf6 {[%emt 0:00:05]} 10. Nf3 {[%emt 0:00:15]} Bd6 {[%emt 0:00:06]} 11. O-O {[%emt 0:00:06]} O-O {[%emt 0:00:04]} 12. Bf4 {[%emt 0:00:16]} Bxf4 {[%emt 0:00:06]} 13. Nxf4 {[%emt 0:00:04]} Ng4 {[%emt 0:00:06]} 14. Ne2 {[%emt 0:21:04]} e5 {[%emt 0:24:17]} 15. dxe5 {[%emt 0:02:23]} Rxf3 {[%emt 0:00:21]} 16. gxf3 {[%emt 0:01:00]} Ngxe5 {[%emt 0:00:05]} 17. Ng3 {[%emt 0:08:12]} Nd4 {[%emt 0:00:36]} 18. Be2 {[%emt 0:09:49]} Qh4 {[%emt 0:00:06]} 19. Rc1 {[%emt 0:09:32]} Bd7 {[%emt 0:12:20]} 20. Rc3 {[%emt 0:03:38]} Rf8 {[%emt 0:02:37]} 21. Re3 {[%emt 0:08:14]} Bb5 {[%emt 0:05:59]} 22. Kg2 {[%emt 0:07:14]} Bxe2 {[%emt 0:23:31]} 23. Nxe2 {[%emt 0:00:05]} Nexf3 {[%emt 0:00:46]} 24. h3 {[%emt 0:02:15]} Qg5+ {[%emt 0:07:43]} 25. Ng3 {[%emt 0:01:48]} h5 {[%emt 0:01:11]} 26. Kh1 {[%emt 0:06:46]} Rf4 {[%emt 0:09:00]} 27. Qc1 {[%emt 0:01:41]} h4 {[%emt 0:08:14]} 28. Qc8+ {[%emt 0:00:07]} Kh7 {[%emt 0:01:45]} 29. Ne2 {[%emt 0:00:23]} Nxe2 {[%emt 0:00:33]} 30. Rxe2 {[%emt 0:00:06]} Re4 {[%emt 0:02:17]} 31. Rxe4 {[%emt 0:05:02]} dxe4 {[%emt 0:00:01]} 32. Rc1 {[%emt 0:03:10]} Qf4 {[%emt 0:00:44]} 33. Qc7 {[%emt 0:00:18]} Qf5 {[%emt 0:00:11]} 34. Qc8 {[%emt 0:00:16]} Qf4 {[%emt 0:00:05]} 35. Qc7 {[%emt 0:00:16]} 1/2-1/2

[Event "EYCC Open-U18 2019"]
[Site "Bratislava"]
[Date "2019.08.07"]
[Round "6.20"]
[White "Kotau, Arseni"]
[Black "Galiana Fernandez, Adrian"]
[Result "1-0"]
[ECO "E06"]
[WhiteElo "2227"]
[BlackElo "2302"]
[Annotator "NA"]
[PlyCount "53"]
[EventDate "2019.08.02"]
[EventType "swiss"]
[EventCountry "SVK"]
[SourceTitle "playchess.com"]
[Source "ChessBase"]
[SourceQuality "1"]
[TimeControl "40/5400+30:1800+30"]

1. d4 {[%emt 0:00:00]} Nf6 {[%emt 0:00:00]} 2. c4 {[%emt 0:00:00]} e6 {[%emt 0:00:00]} 3. g3 {[%emt 0:00:00]} d5 {[%emt 0:00:00]} 4. Bg2 {[%emt 0:00:00]} Be7 {[%emt 0:00:06]} 5. Nf3 {[%emt 0:00:02]} O-O {[%emt 0:00:07]} 6. O-O {[%emt 0:00:05]} dxc4 {[%emt 0:00:08]} 7. Qc2 {[%emt 0:00:10]} b5 {[%emt 0:00:06]} 8. a4 {[%emt 0:02:00]} b4 {[%emt 0:00:06]} 9. Ne5 {[%emt 0:06:04]} Qxd4 {[%emt 0:00:56]} 10. Bxa8 {[%emt 0:09:31]} Qxe5 {[%emt 0:00:14]} 11. Bf3 {[%emt 0:00:08]} Nd5 {[%emt 0:05:03]} 12. Qxc4 {[%emt 0:09:18]} Ba6 {[%emt 0:06:37]} 13. Qc2 {[%emt 0:13:43]} c5 {[%emt 0:01:46]} 14. Nd2 {[%emt 0:02:30]} Nc6 {[%emt 0:00:46]} 15. Nc4 {[%emt 0:15:09]} Qd4 {[%emt 0:04:08]} 16. Ne3 {[%emt 0:02:29]} Ne5 {[%emt 0:03:03]} 17. Bxd5 {[%emt 0:05:44]} b3 {[%emt 0:07:50]} 18. Bxb3 {[%emt 0:02:25]} c4 {[%emt 0:02:45]} 19. Ba2 {[%emt 0:02:17]} Rc8 {[%emt 0:00:17]} 20. Bd2 {[%emt 0:09:52]} Ng4 {[%emt 0:00:23]} 21. Bb1 {[%emt 0:01:48]} f5 {[%emt 0:03:31]} 22. Bc3 {[%emt 0:00:14]} Qxe3 {[%emt 0:01:45]} 23. fxe3 {[%emt 0:00:28]} Nxe3 {[%emt 0:00:15]} 24. Qd2 {[%emt 0:04:00]} Bc5 {[%emt 0:00:12]} 25. Qd7 {[%emt 0:01:02]} e5 {[%emt 0:01:46]} 26. Bxe5 {[%emt 0:01:56]} Ng4+ {[%emt 0:00:01]} 27. Bd4 {[%emt 0:00:06]} 1-0

[Event "EYCC Open-U18 2019"]
[Site "Bratislava"]
[Date "2019.08.07"]
[Round "6.21"]
[White "Nordquelle, Daniel"]
[Black "Zabolotnov, Evgeny"]
[Result "1/2-1/2"]
[ECO "B12"]
[WhiteElo "2181"]
[BlackElo "2284"]
[Annotator "NA"]
[PlyCount "132"]
[EventDate "2019.08.02"]
[EventType "swiss"]
[EventCountry "SVK"]
[SourceTitle "playchess.com"]
[Source "ChessBase"]
[SourceQuality "1"]
[TimeControl "40/5400+30:1800+30"]

1. e4 {[%emt 0:00:00]} c6 {[%emt 0:00:00]} 2. d4 {[%emt 0:00:00]} d5 {[%emt 0:00:00]} 3. e5 {[%emt 0:00:00]} Bf5 {[%emt 0:00:00]} 4. Nf3 {[%emt 0:00:00]} e6 {[%emt 0:00:00]} 5. Be2 {[%emt 0:00:05]} Ne7 {[%emt 0:00:01]} 6. O-O {[%emt 0:00:46]} c5 {[%emt 0:00:03]} 7. Be3 {[%emt 0:00:05]} Nec6 {[%emt 0:03:47]} 8. dxc5 {[%emt 0:05:49]} Nd7 {[%emt 0:00:33]} 9. Bb5 {[%emt 0:00:11]} Bg4 {[%emt 0:04:49]} 10. Nbd2 {[%emt 0:33:30]} Bxc5 {[%emt 0:03:32]} 11. Bxc5 {[%emt 0:00:46]} Nxc5 {[%emt 0:00:06]} 12. h3 {[%emt 0:10:37]} Bh5 {[%emt 0:09:43]} 13. c4 {[%emt 0:09:31]} O-O {[%emt 0:04:45]} 14. Qc2 {[%emt 0:02:39]} Bg6 {[%emt 0:04:13]} 15. Qc3 {[%emt 0:00:38]} Rc8 {[%emt 0:14:58]} 16. Rfd1 {[%emt 0:01:42]} Nd3 {[%emt 0:07:08]} 17. Nb3 {[%emt 0:05:47]} dxc4 {[%emt 0:11:50]} 18. Bxc4 {[%emt 0:02:56]} Ncb4 {[%emt 0:02:29]} 19. Nbd4 {[%emt 0:03:03]} Nd5 {[%emt 0:05:51]} 20. Qb3 {[%emt 0:00:20]} Rxc4 {[%emt 0:01:05]} 21. Qxc4 {[%emt 0:03:39]} Nxb2 {[%emt 0:00:02]} 22. Qb3 {[%emt 0:01:23]} Nxd1 {[%emt 0:00:11]} 23. Rxd1 {[%emt 0:00:01]} Qb6 {[%emt 0:02:32]} 24. Qxb6 {[%emt 0:00:51]} axb6 {[%emt 0:02:13]} 25. Nb5 {[%emt 0:01:05]} Ra8 {[%emt 0:01:30]} 26. Rd2 {[%emt 0:00:13]} Bb1 {[%emt 0:02:15]} 27. a3 {[%emt 0:00:05]} Be4 {[%emt 0:01:52]} 28. Ng5 {[%emt 0:01:12]} Bg6 {[%emt 0:00:35]} 29. Nf3 {[%emt 0:00:07]} h6 {[%emt 0:00:59]} 30. g3 {[%emt 0:01:05]} Rc8 {[%emt 0:02:02]} 31. Nfd4 {[%emt 0:00:53]} Rc1+ {[%emt 0:01:45]} 32. Kg2 {[%emt 0:00:02]} Nc3 {[%emt 0:02:41]} 33. f3 {[%emt 0:08:25]} Nxb5 {[%emt 0:00:16]} 34. Nxb5 {[%emt 0:00:06]} Rc5 {[%emt 0:01:01]} 35. Nd6 {[%emt 0:00:05]} Rxe5 {[%emt 0:00:25]} 36. Rb2 {[%emt 0:00:11]} Ra5 {[%emt 0:03:25]} 37. Nxb7 {[%emt 0:02:18]} Rxa3 {[%emt 0:00:07]} 38. Rxb6 {[%emt 0:00:20]} Ra2+ {[%emt 0:00:08]} 39. Kg1 {[%emt 0:00:18]} Ra1+ {[%emt 0:00:39]} 40. Kg2 {[%emt 0:00:00]} Ra2+ {[%emt 0:00:00]} 41. Kg1 {[%emt 0:00:34]} Ra1+ {[%emt 0:00:17]} 42. Kg2 {[%emt 0:00:23]} Rb1 {[%emt 0:01:06]} 43. Rxb1 {[%emt 0:00:24]} Bxb1 {[%emt 0:00:02]} 44. h4 {[%emt 0:01:15]} Kf8 {[%emt 0:00:56]} 45. Nc5 {[%emt 0:03:59]} Ke7 {[%emt 0:00:15]} 46. Na4 {[%emt 0:00:25]} Bc2 {[%emt 0:00:32]} 47. Nc3 {[%emt 0:00:08]} Kd6 {[%emt 0:01:56]} 48. Kf2 {[%emt 0:00:25]} Bb3 {[%emt 0:04:44]} 49. Ke3 {[%emt 0:00:12]} Bd5 {[%emt 0:00:15]} 50. Ne2 {[%emt 0:02:03]} e5 {[%emt 0:02:25]} 51. Nc3 {[%emt 0:00:24]} Bc6 {[%emt 0:00:08]} 52. f4 {[%emt 0:05:20]} h5 {[%emt 0:04:48]} 53. fxe5+ {[%emt 0:01:40]} Kxe5 {[%emt 0:00:03]} 54. Ne2 {[%emt 0:00:40]} Bb7 {[%emt 0:00:32]} 55. Nf4 {[%emt 0:00:15]} g6 {[%emt 0:00:11]} 56. Nd3+ {[%emt 0:00:24]} Kf5 {[%emt 0:00:11]} 57. Nf4 {[%emt 0:00:12]} Kg4 {[%emt 0:00:22]} 58. Kf2 {[%emt 0:00:05]} g5 {[%emt 0:06:35]} 59. hxg5 {[%emt 0:06:41]} h4 {[%emt 0:02:36]} 60. g6 {[%emt 0:00:42]} fxg6 {[%emt 0:03:39]} 61. Nxg6 {[%emt 0:00:09]} h3 {[%emt 0:00:43]} 62. Ne5+ {[%emt 0:00:17]} Kf5 {[%emt 0:00:06]} 63. Nf3 {[%emt 0:00:16]} Bd5 {[%emt 0:01:43]} 64. Nh2 {[%emt 0:00:51]} Ke4 {[%emt 0:02:15]} 65. Nf1 {[%emt 0:00:52]} Kd3 {[%emt 0:00:53]} 66. Nh2 {[%emt 0:00:10]} Ke4 {[%emt 0:02:01]} 1/2-1/2